bitfinex/quotes_BTCUSD_20250812
["timestamp","ask_amount","ask_price","bid_price","bid_amount"]
[1755030754376,0.17747552,119840.0,119830.0,1.68577479]
[1755030755873,0.17535552,119840.0,119830.0,1.68577479]
[1755030759474,0.17612552,119840.0,119830.0,1.68577479]
[1755030761050,0.17535552,119840.0,119830.0,1.86872479]
[1755030762520,0.16701107,119840.0,119830.0,1.86872479]
[1755030762727,0.00012189,119840.0,119830.0,1.86872479]
[1755030764544,0.16701107,119840.0,119830.0,1.86872479]
[1755030767932,0.14699369,119840.0,119830.0,1.86872479]
[1755030777872,0.12697654,119840.0,119830.0,1.86872479]
[1755030778090,0.12697654,119840.0,119830.0,1.86672479]
[1755030778308,0.16697912,119850.0,119840.0,0.15]
[1755030778515,0.16909912,119850.0,119840.0,1.40036379]
[1755030778927,0.16909912,119850.0,119840.0,0.38088325]
[1755030779067,0.16909912,119850.0,119840.0,1.40036379]
[1755030779286,0.16909912,119850.0,119840.0,1.42539579]
[1755030779899,0.16909912,119850.0,119840.0,0.40791525]
[1755030780107,0.16909912,119850.0,119840.0,1.42739579]
[1755030780509,0.17211912,119850.0,119840.0,0.40791525]
[1755030780750,0.17211912,119850.0,119840.0,1.42739579]
[1755030781354,0.16909912,119850.0,119840.0,1.42739579]
[1755030781732,0.16909912,119850.0,119840.0,0.40791525]
[1755030781902,0.16909912,119850.0,119840.0,1.42739579]
[1755030783187,0.17211912,119850.0,119840.0,1.42739579]
[1755030783591,0.16909912,119850.0,119840.0,1.42739579]
[1755030784750,0.17211912,119850.0,119840.0,0.96765552]
[1755030784958,0.17211912,119850.0,119840.0,0.61949552]
[1755030785166,0.17211912,119850.0,119840.0,0.76737552]
[1755030785961,0.17211912,119850.0,119840.0,0.25763525]
[1755030786168,0.17211912,119850.0,119840.0,1.27711579]
[1755030786375,0.16909912,119850.0,119840.0,1.43213579]
[1755030786584,0.16697912,119850.0,119840.0,1.43213579]
[1755030787482,0.16697912,119850.0,119840.0,0.61265525]
[1755030787717,0.16697912,119850.0,119840.0,1.63213579]
[1755030788876,0.17831655,119860.0,119840.0,1.63213579]
[1755030788877,0.17529655,119860.0,119840.0,1.63213579]
[1755030789084,0.17529655,119860.0,119850.0,0.94530946]
[1755030789285,0.17619655,119860.0,119850.0,0.43546325]
[1755030789519,0.17619655,119860.0,119850.0,0.94520352]
[1755030790687,0.17719655,119860.0,119850.0,0.97023552]
[1755030790919,0.17719655,119860.0,119850.0,0.46049525]
[1755030791120,0.17719655,119860.0,119850.0,0.97023552]
[1755030791683,0.17719655,119860.0,119850.0,0.46049525]
[1755030791875,0.17719655,119860.0,119850.0,0.97023552]
[1755030792044,0.17629655,119860.0,119850.0,0.94520352]
[1755030792250,0.17629655,119860.0,119850.0,1.14532352]
[1755030794324,0.17629655,119860.0,119850.0,1.17035452]
[1755030799059,0.16628782,119860.0,119850.0,1.17035452]
[1755030800345,0.001,119860.0,119850.0,1.17035452]
[1755030800767,0.001,119860.0,119850.0,2.13723005]
[1755030801919,0.16688764,119890.0,119880.0,0.2]
[1755030802120,0.16905895,119890.0,119880.0,1.45138379]
[1755030802306,0.16905895,119890.0,119880.0,1.45442379]
[1755030802513,0.16690089,119890.0,119880.0,1.65442379]
[1755030802720,0.16690089,119890.0,119880.0,1.67944979]
[1755030803260,0.16990089,119890.0,119880.0,1.67944979]
[1755030804360,0.00308131,119890.0,119880.0,1.67944979]
[1755030804744,0.00308131,119890.0,119880.0,1.70465497]
[1755030804978,0.00108131,119890.0,119880.0,1.70465497]
[1755030805922,8.131e-05,119890.0,119880.0,1.70465497]
[1755030806123,8.131e-05,119890.0,119880.0,1.70565497]
[1755030806734,8.131e-05,119890.0,119880.0,1.70465497]
[1755030806945,8.131e-05,119890.0,119880.0,1.70565497]
[1755030807177,8.131e-05,119890.0,119880.0,1.70665497]
[1755030807385,8.131e-05,119890.0,119880.0,0.68717443]
[1755030807593,8.131e-05,119890.0,119880.0,1.70665497]
[1755030808640,8.131e-05,119890.0,119880.0,1.70565497]
[1755030808838,8.131e-05,119890.0,119880.0,1.70665497]
[1755030810649,8.131e-05,119890.0,119880.0,0.68717443]
[1755030811016,8.131e-05,119890.0,119880.0,1.70665497]
[1755030813710,8.131e-05,119890.0,119880.0,4.01969747]
[1755030813921,8.131e-05,119890.0,119880.0,4.53214445]
[1755030814184,8.131e-05,119890.0,119880.0,4.55665125]
[1755030814559,8.131e-05,119890.0,119880.0,4.61482774]
[1755030814992,1.362e-05,119890.0,119880.0,4.61482774]
[1755030815594,1.362e-05,119890.0,119880.0,4.61282774]
[1755030815941,1.362e-05,119890.0,119880.0,4.61682774]
[1755030816142,1.362e-05,119890.0,119880.0,4.61982774]
[1755030817135,1.362e-05,119890.0,119880.0,4.11008747]
[1755030817897,1.362e-05,119890.0,119880.0,3.98319747]
[1755030818259,1.362e-05,119890.0,119880.0,2.95521693]
[1755030818508,1.362e-05,119890.0,119880.0,3.97469747]
[1755030818737,1.362e-05,119890.0,119880.0,3.62469747]
[1755030818952,1.362e-05,119890.0,119880.0,3.97469747]
[1755030819143,1.362e-05,119890.0,119880.0,3.00611747]
[1755030819356,1.362e-05,119890.0,119880.0,2.53182497]
[1755030819560,1.362e-05,119890.0,119880.0,0.86593343]
[1755030819813,1.362e-05,119890.0,119880.0,1.98072047]
[1755030820004,1.362e-05,119890.0,119880.0,2.48196074]
[1755030820204,1.362e-05,119890.0,119880.0,2.50376083]
[1755030820612,1.362e-05,119890.0,119880.0,2.48196074]
[1755030824731,1.362e-05,119890.0,119880.0,0.95273993]
[1755030824988,1.362e-05,119890.0,119880.0,2.48196074]
[1755030825245,1.362e-05,119890.0,119880.0,2.49046074]
[1755030826804,1.362e-05,119890.0,119880.0,2.69046074]
[1755030828932,1.362e-05,119890.0,119880.0,1.16123993]
[1755030829148,1.362e-05,119890.0,119880.0,2.18072047]
[1755030829589,1.362e-05,119890.0,119880.0,2.69046074]
[1755030831154,1.362e-05,119890.0,119880.0,2.71546074]
[1755030831363,1.362e-05,119890.0,119880.0,2.69046074]
[1755030832490,1.362e-05,119890.0,119880.0,2.89050074]
[1755030832898,1.362e-05,119890.0,119880.0,1.36127993]
[1755030833082,1.362e-05,119890.0,119880.0,2.89050074]
[1755030833466,1.362e-05,119890.0,119880.0,2.88200074]
[1755030833891,6.043e-05,119900.0,119890.0,0.31681958]
[1755030834129,6.043e-05,119900.0,119890.0,5.23008837]
[1755030834360,6.043e-05,119900.0,119890.0,5.23303837]
[1755030835642,6.043e-05,119900.0,119890.0,5.23803837]
[1755030836354,6.043e-05,119900.0,119890.0,3.57963937]
[1755030836575,6.043e-05,119900.0,119890.0,3.58813937]
[1755030837867,0.08281265,119920.0,119910.0,0.71679176]
[1755030838067,0.08483265,119920.0,119910.0,1.96503555]
[1755030839132,0.08483265,119920.0,119910.0,0.97057101]
[1755030839339,0.08483265,119920.0,119910.0,1.99105155]
[1755030839546,0.08784265,119920.0,119910.0,1.82425979]
[1755030839690,0.08784265,119920.0,119910.0,1.99105155]
[1755030840336,0.08784265,119920.0,119910.0,1.82425979]
[1755030840541,0.08784265,119920.0,119910.0,0.65873925]
[1755030840724,0.08784265,119920.0,119910.0,1.11447952]
[1755030841853,0.08281265,119920.0,119910.0,1.31447952]
[1755030842053,0.08790265,119920.0,119910.0,1.85256422]
[1755030842432,0.08790265,119920.0,119910.0,0.83308368]
[1755030842637,0.08790265,119920.0,119910.0,1.34282395]
[1755030844716,0.08790265,119920.0,119910.0,0.83308368]
[1755030845143,0.08790265,119920.0,119910.0,1.85256422]
[1755030847852,0.08790265,119920.0,119910.0,1.34282395]
[1755030849186,0.08489265,119920.0,119910.0,1.85256422]
[1755030850426,0.08489265,119920.0,119910.0,0.83308368]
[1755030850646,0.08489265,119920.0,119910.0,1.85256422]
[1755030851333,0.08489265,119920.0,119910.0,1.34282395]
[1755030851544,0.08489265,119920.0,119910.0,1.85256422]
[1755030851749,0.2546805,119920.0,119910.0,0.68708368]
[1755030852179,0.2546805,119920.0,119910.0,1.31756795]
[1755030853686,0.2495905,119920.0,119910.0,1.31756795]
[1755030853900,0.2495905,119920.0,119910.0,1.82730822]
[1755030854126,0.08281265,119920.0,119910.0,1.83225822]
[1755030854339,0.08281265,119920.0,119910.0,2.03225822]
[1755030855186,0.08281265,119920.0,119910.0,2.00391379]
[1755030855700,0.08281265,119920.0,119910.0,2.03265998]
[1755030857755,0.08281265,119920.0,119910.0,2.19945174]
[1755030857994,0.08281265,119920.0,119910.0,2.03265998]
[1755030859371,0.08281265,119920.0,119910.0,2.19945174]
[1755030861874,0.08281265,119920.0,119910.0,4.30232874]
[1755030862092,0.08281265,119920.0,119910.0,3.74537374]
[1755030862508,0.08281265,119920.0,119910.0,3.77038974]
[1755030862928,0.08281265,119920.0,119910.0,3.74164355]
[1755030870978,0.08214971,119920.0,119910.0,3.74164355]
[1755030874616,0.08214971,119920.0,119910.0,3.09438355]
[1755030874956,0.08214971,119920.0,119910.0,2.79317855]
[1755030875144,0.08214971,119920.0,119910.0,2.55389455]
[1755030875345,0.08214971,119920.0,119910.0,2.69909455]
[1755030875911,0.08418971,119920.0,119910.0,1.36847952]
[1755030876119,0.08418971,119920.0,119910.0,1.68047128]
[1755030876333,0.08418971,119920.0,119910.0,2.19021155]
[1755030876534,0.08418971,119920.0,119910.0,1.17581101]
[1755030876670,0.08214971,119920.0,119910.0,2.19529155]
[1755030879618,0.08214971,119920.0,119910.0,1.17581101]
[1755030879822,0.08214971,119920.0,119910.0,2.19529155]
[1755030880748,0.08418971,119920.0,119910.0,2.02341979]
[1755030881150,0.08741971,119920.0,119910.0,2.02341979]
[1755030881846,0.08741971,119920.0,119910.0,1.82341979]
[1755030882251,0.08741971,119920.0,119910.0,1.62341979]
[1755030882459,0.08741971,119920.0,119910.0,1.82341979]
[1755030882873,0.08741971,119920.0,119910.0,1.47337979]
[1755030883083,0.08741971,119920.0,119910.0,1.67337979]
[1755030883292,0.08741971,119920.0,119910.0,1.47337979]
[1755030883499,0.08418971,119920.0,119910.0,1.67337979]
[1755030884332,0.08418971,119920.0,119910.0,0.65389925]
[1755030884545,0.08741971,119920.0,119910.0,1.82337979]
[1755030885635,0.08214971,119920.0,119910.0,3.25851955]
[1755030887101,0.08214971,119920.0,119910.0,3.45851955]
[1755030888917,0.08214971,119920.0,119910.0,3.48260296]
[1755030889087,0.08214971,119920.0,119910.0,3.48560296]
[1755030889292,0.08214971,119920.0,119910.0,3.48460296]
[1755030889693,0.08214971,119920.0,119910.0,3.48660296]
[1755030891657,0.0004,119930.0,119910.0,3.48660296]
[1755030891856,0.0002,119940.0,119930.0,0.74176394]
[1755030892082,0.00014607,119940.0,119930.0,7.03855701]
[1755030892290,0.00014607,119940.0,119930.0,7.01679675]
[1755030892504,0.00014607,119940.0,119930.0,7.06227675]
[1755030892708,0.00023501,119950.0,119940.0,1.33623058]
[1755030892907,0.00023501,119950.0,119940.0,6.48311058]
[1755030893124,0.00023501,119950.0,119940.0,6.56883383]
[1755030893290,0.00023501,119950.0,119940.0,6.60233383]
[1755030894420,0.00023501,119950.0,119940.0,6.60533383]
[1755030894645,3.288e-05,119950.0,119940.0,6.60533383]
[1755030895049,3.288e-05,119950.0,119940.0,6.62278285]
[1755030895254,3.288e-05,119950.0,119940.0,6.64711767]
[1755030895453,0.0004,119960.0,119950.0,0.75918516]
[1755030895656,0.0004,119960.0,119950.0,6.50140868]
[1755030895881,0.0004,119960.0,119950.0,7.52088922]
[1755030896462,0.0004,119960.0,119950.0,7.52422222]
[1755030896669,0.0004,119960.0,119950.0,5.99800141]
[1755030896917,0.0004,119960.0,119950.0,7.52722222]
[1755030897491,0.0004,119960.0,119950.0,7.38254222]
[1755030897693,0.0004,119960.0,119950.0,7.53118222]
[1755030898127,0.0004,119960.0,119950.0,7.38654222]
[1755030898325,0.0004,119960.0,119950.0,7.53118222]
[1755030898544,0.0004,119960.0,119950.0,7.38654222]
[1755030898752,0.0004,119960.0,119950.0,7.02140195]
[1755030898956,0.0004,119960.0,119950.0,7.53114222]
[1755030899516,0.0004,119970.0,119960.0,0.31672224]
[1755030899716,0.0004,119970.0,119960.0,4.7924863]
[1755030900309,0.0004,119970.0,119960.0,4.6478863]
[1755030900519,0.00252,119970.0,119960.0,2.09198903]
[1755030900747,0.00252,119970.0,119960.0,2.44398903]
[1755030901367,0.00252,119970.0,119960.0,2.42529103]
[1755030901764,0.0002,119980.0,119970.0,0.15]
[1755030901974,0.000346,119980.0,119970.0,4.40999509]
[1755030902181,0.000346,119980.0,119970.0,4.55034739]
[1755030902586,0.000346,119980.0,119970.0,4.55368039]
[1755030903149,0.000346,119980.0,119970.0,4.38940013]
[1755030903346,0.000346,119980.0,119970.0,4.94558942]
[1755030903549,0.000346,119980.0,119970.0,4.43384915]
[1755030903788,0.000346,119980.0,119970.0,4.57828915]
[1755030903996,0.000346,119980.0,119970.0,4.57278915]
[1755030904203,0.000346,119980.0,119970.0,4.43684915]
[1755030904405,0.000346,119980.0,119970.0,4.58128915]
[1755030905637,0.000346,119980.0,119970.0,4.43128915]
[1755030907182,0.000346,119980.0,119970.0,4.78128915]
[1755030908316,0.000346,119980.0,119970.0,5.00134915]
[1755030908467,0.000346,119980.0,119970.0,5.14570915]
[1755030909436,0.000346,119980.0,119970.0,5.14107915]
[1755030909624,0.00177412,120000.0,119990.0,1.68616109]
[1755030909787,0.00177412,120000.0,119990.0,2.59056634]
[1755030909986,0.00389412,120000.0,119990.0,2.59056634]
[1755030910376,0.00389412,120000.0,119990.0,2.46221634]
[1755030910774,0.00692412,120000.0,119990.0,1.77147879]
[1755030910986,0.00692412,120000.0,119990.0,1.77347879]
[1755030911188,0.00692412,120000.0,119990.0,1.77447879]
[1755030912508,0.00389412,120000.0,119990.0,1.80210934]
[1755030912712,0.00389412,120000.0,119990.0,1.94630934]
[1755030914189,0.00389412,120000.0,119990.0,1.80210934]
[1755030914394,0.00177412,120000.0,119990.0,5.33517034]
[1755030914602,0.00177412,120000.0,119990.0,5.06982834]
[1755030916823,0.00857955,120020.0,120010.0,0.66665277]
[1755030917042,0.01084552,120020.0,120010.0,1.40323629]
[1755030917297,0.01387552,120020.0,120010.0,1.40323629]
[1755030917941,0.01387552,120020.0,120010.0,1.42823029]
[1755030918183,0.01387552,120020.0,120010.0,1.45299326]
[1755030920827,0.01084552,120020.0,120010.0,1.45299326]
[1755030922206,0.00872552,120020.0,120010.0,2.02384353]
[1755030922418,0.00872552,120020.0,120010.0,2.94169753]
[1755030922626,0.00872552,120020.0,120010.0,2.79773753]
[1755030922835,0.00872552,120020.0,120010.0,2.94169753]
[1755030923042,0.00872552,120020.0,120010.0,2.28799726]
[1755030923264,0.01084552,120020.0,120010.0,2.19584426]
[1755030923461,0.01084552,120020.0,120010.0,2.19684426]
[1755030923892,0.00872552,120020.0,120010.0,2.19584426]
[1755030924091,0.00872552,120020.0,120010.0,2.06921264]
[1755030924299,0.00872552,120020.0,120010.0,2.70554453]
[1755030924621,0.00872552,120020.0,120010.0,2.56166453]
[1755030924844,0.00872552,120020.0,120010.0,2.70554453]
[1755030925268,0.00872552,120020.0,120010.0,2.70654453]
[1755030925667,0.00872552,120020.0,120010.0,2.72323453]
[1755030925885,0.00872552,120020.0,120010.0,2.70654453]
[1755030926222,0.00872552,120020.0,120010.0,2.70854453]
[1755030926626,0.00872552,120020.0,120010.0,2.72583291]
[1755030927484,0.00872552,120020.0,120010.0,2.7226969]
[1755030927692,0.00872552,120020.0,120010.0,2.74753014]
[1755030929243,0.00872552,120020.0,120010.0,2.74749014]
[1755030930305,0.00872552,120020.0,120010.0,2.73325777]
[1755030931962,0.00872552,120020.0,120010.0,2.93309777]
[1755030932417,0.00872552,120020.0,120010.0,2.79783777]
[1755030932810,0.00872552,120020.0,120010.0,2.94147777]
[1755030933213,0.00872552,120020.0,120010.0,1.94218303]
[1755030933423,0.00872552,120020.0,120010.0,2.96166357]
[1755030933642,0.00872552,120020.0,120010.0,2.81802357]
[1755030934073,0.00872552,120020.0,120010.0,2.94143777]
[1755030934453,0.26476952,120020.0,120010.0,2.94143777]
[1755030934697,0.26476952,120020.0,120010.0,2.79783777]
[1755030934921,0.26476952,120020.0,120010.0,2.94143777]
[1755030936354,0.26476952,120020.0,120010.0,3.15593777]
[1755030937263,0.26476952,120020.0,120010.0,3.01233777]
[1755030937446,0.26476952,120020.0,120010.0,3.15585777]
[1755030937876,0.26278952,120020.0,120010.0,3.15585777]
[1755030938192,0.26278952,120020.0,120010.0,3.01233777]
[1755030938420,0.26278952,120020.0,120010.0,3.15581777]
[1755030939477,0.26278952,120020.0,120010.0,3.16437191]
[1755030939685,0.26278952,120020.0,120010.0,3.17292605]
[1755030939858,0.26278952,120020.0,120010.0,3.15581777]
[1755030940074,0.26278952,120020.0,120010.0,3.16437191]
[1755030940235,0.26278952,120020.0,120010.0,3.17292605]
[1755030940635,0.26278952,120020.0,120010.0,3.15581777]
[1755030941067,0.26278952,120020.0,120010.0,3.15573777]
[1755030941493,0.24327195,120020.0,120010.0,3.15573777]
[1755030941950,0.24327195,120020.0,120010.0,3.15473777]
[1755030942069,0.24327195,120020.0,120010.0,2.81428679]
[1755030942274,0.24327195,120020.0,120010.0,2.83139507]
[1755030942493,0.24327195,120020.0,120010.0,2.97475507]
[1755030942983,0.24327195,120020.0,120010.0,2.97001891]
[1755030943202,0.24327195,120020.0,120010.0,2.97201891]
[1755030943855,0.24327195,120020.0,120010.0,2.96064679]
[1755030945093,0.23327939,120020.0,120010.0,2.96064679]
[1755030946986,0.23327939,120020.0,120010.0,2.97501891]
[1755030947160,0.23327939,120020.0,120010.0,2.96052679]
[1755030947638,0.23327939,120020.0,120010.0,2.81728679]
[1755030947819,0.23327939,120020.0,120010.0,2.96052679]
[1755030950252,0.23327939,120020.0,120010.0,2.84228679]
[1755030950653,0.23327939,120020.0,120010.0,2.98544679]
[1755030950853,0.23327939,120020.0,120010.0,1.96596625]
[1755030951113,0.23327939,120020.0,120010.0,1.94096625]
[1755030951427,0.23327939,120020.0,120010.0,2.81728679]
[1755030951622,0.23327939,120020.0,120010.0,2.96044679]
[1755030951902,0.23327939,120020.0,120010.0,2.96040679]
[1755030952108,0.23327939,120020.0,120010.0,2.95190679]
[1755030955408,0.23327939,120020.0,120010.0,2.80878679]
[1755030955627,0.23327939,120020.0,120010.0,2.95186679]
[1755030956595,0.23327939,120020.0,120010.0,2.80878679]
[1755030956792,0.23327939,120020.0,120010.0,2.96737625]
[1755030957310,0.23327939,120020.0,120010.0,2.81745355]
[1755030957528,0.23327939,120020.0,120010.0,2.96049355]
[1755030957734,0.00487,120040.0,120030.0,0.86662501]
[1755030957942,0.00487,120040.0,120030.0,6.52426555]
[1755030958219,0.00487,120040.0,120030.0,6.11089482]
[1755030958438,0.00685,120040.0,120030.0,5.54807782]
[1755030958803,0.00685,120040.0,120030.0,5.57306282]
[1755030959005,0.00685,120040.0,120030.0,5.55290282]
[1755030959191,0.00487,120040.0,120030.0,5.55605282]
[1755030959559,0.00487,120040.0,120030.0,5.57891487]
[1755030959759,0.00487,120040.0,120030.0,5.57991487]
[1755030960206,0.00487,120040.0,120030.0,5.55705282]
[1755030960415,0.00487,120040.0,120030.0,3.89024228]
[1755030960724,0.00487,120040.0,120030.0,3.45720982]
[1755030961762,0.00692,120040.0,120030.0,3.45405982]
[1755030962135,0.00997,120040.0,120030.0,1.9493768]
[1755030962295,0.00997,120040.0,120030.0,2.2543328]
[1755030962513,0.00997,120040.0,120030.0,2.3776668]
[1755030962910,0.00997,120040.0,120030.0,2.2347468]
[1755030963138,0.00692,120040.0,120030.0,2.1764578]
[1755030963347,0.00692,120040.0,120030.0,2.19729612]
[1755030963549,0.00487,120040.0,120030.0,2.34021612]
[1755030963949,0.00487,120040.0,120030.0,2.54021612]
[1755030964366,0.00487,120040.0,120030.0,1.52073558]
[1755030964539,0.00487,120040.0,120030.0,2.54021612]
[1755030965161,0.00487,120040.0,120030.0,2.5224878]
[1755030965356,0.00487,120040.0,120030.0,2.53135196]
[1755030965561,0.00487,120040.0,120030.0,2.54021612]
[1755030967561,0.00487,120040.0,120030.0,1.52073558]
[1755030967770,0.00487,120040.0,120030.0,2.54021612]
[1755030967971,0.00487,120040.0,120030.0,1.52073558]
[1755030968109,0.00487,120040.0,120030.0,2.5224878]
[1755030969115,0.00487,120040.0,120030.0,2.92047147]
[1755030969516,0.00487,120040.0,120030.0,3.06327147]
[1755030969946,0.00487,120040.0,120030.0,3.04955709]
[1755030970173,0.00487,120040.0,120030.0,3.06327147]
[1755030970891,0.00487,120040.0,120030.0,2.92047147]
[1755030971216,0.00487,120040.0,120030.0,3.06323147]
[1755030971418,0.00305,120070.0,120060.0,0.55]
[1755030971625,0.00558678,120070.0,120060.0,1.96154716]
[1755030972034,0.00558678,120070.0,120060.0,1.97526154]
[1755030972278,0.00558678,120070.0,120060.0,0.94206662]
[1755030972497,0.00558678,120070.0,120060.0,1.33403289]
[1755030972734,0.00558678,120070.0,120060.0,1.47675289]
[1755030972947,0.00558678,120070.0,120060.0,1.33403289]
[1755030973159,0.00558678,120070.0,120060.0,1.47675289]
[1755030973985,0.00558678,120070.0,120060.0,1.98649316]
[1755030974207,0.00558678,120070.0,120060.0,1.47675289]
[1755030974804,0.00558678,120070.0,120060.0,0.65770925]
[1755030975011,0.00558678,120070.0,120060.0,1.11012952]
[1755030975215,0.05685678,120070.0,120060.0,0.96744952]
[1755030975774,0.05685678,120070.0,120060.0,1.11012952]
[1755030976153,0.05685678,120070.0,120060.0,0.60038925]
[1755030976356,0.05685678,120070.0,120060.0,1.11012952]
[1755030978624,0.22342628,120070.0,120060.0,0.96744952]
[1755030978955,0.22342628,120070.0,120060.0,1.11008952]
[1755030980115,0.22342628,120070.0,120060.0,0.96744952]
[1755030980684,0.22342628,120070.0,120060.0,1.11004952]
[1755030981833,0.22342628,120070.0,120060.0,0.96744952]
[1755030982059,0.22342628,120070.0,120060.0,1.11004952]
[1755030983690,0.22342628,120070.0,120060.0,0.60030925]
[1755030984102,0.22342628,120070.0,120060.0,1.11004952]
[1755030984473,0.22342628,120070.0,120060.0,0.60030925]
[1755030984687,0.22342628,120070.0,120060.0,1.11004952]
[1755030985124,0.22342628,120070.0,120060.0,1.11000952]
[1755030985549,0.22342628,120070.0,120060.0,0.88472627]
[1755030985792,0.22342628,120070.0,120060.0,1.02728627]
[1755030987224,0.17215628,120070.0,120060.0,1.02728627]
[1755030987630,0.17215628,120070.0,120060.0,0.88472627]
[1755030987773,0.17215628,120070.0,120060.0,1.02724627]
[1755030987985,0.17215628,120070.0,120060.0,0.88472627]
[1755030988318,0.17215628,120070.0,120060.0,1.02720627]
[1755030988514,0.17215628,120070.0,120060.0,0.88472627]
[1755030989086,0.17215628,120070.0,120060.0,1.02720627]
[1755030989850,0.17215628,120070.0,120060.0,0.517466]
[1755030990385,0.17215628,120070.0,120060.0,1.02720627]
[1755030990561,0.17215628,120070.0,120060.0,0.88472627]
[1755030990987,0.17215628,120070.0,120060.0,1.02720627]
[1755030991613,0.17215628,120070.0,120060.0,0.88472627]
[1755030991875,0.17215628,120070.0,120060.0,1.02716627]
[1755030992037,0.17215628,120070.0,120060.0,0.88472627]
[1755030992235,0.17215628,120070.0,120060.0,1.02716627]
[1755030993212,0.17215628,120070.0,120060.0,0.68472627]
[1755030993345,0.17215628,120070.0,120060.0,0.82716627]
[1755030993756,0.1896053,120070.0,120060.0,0.82716627]
[1755030994147,0.1845053,120070.0,120060.0,0.82716627]
[1755030994356,0.1821253,120070.0,120060.0,0.82716627]
[1755030997501,0.1821253,120070.0,120060.0,0.68771627]
[1755030997849,0.1821253,120070.0,120060.0,0.83007627]
[1755030997993,0.1821253,120070.0,120060.0,0.68771627]
[1755030998165,0.1821253,120070.0,120060.0,0.83007627]
[1755030998768,0.1821253,120070.0,120060.0,0.68472627]
[1755030998948,0.1821253,120070.0,120060.0,0.82708627]
[1755030999618,0.1821253,120070.0,120060.0,0.68472627]
[1755031000036,0.1821253,120070.0,120060.0,0.82704627]
[1755031001978,0.1831253,120070.0,120060.0,0.317306]
[1755031002186,0.1831253,120070.0,120060.0,0.82704627]
[1755031004104,0.1831253,120070.0,120060.0,0.317306]
[1755031004315,0.1831253,120070.0,120060.0,0.82704627]
[1755031004770,0.1831253,120070.0,120060.0,0.317306]
[1755031004984,0.1831253,120070.0,120060.0,0.82704627]
[1755031005397,0.1831253,120070.0,120060.0,0.68472627]
[1755031005597,0.1831253,120070.0,120060.0,0.82696627]
[1755031006422,0.1831253,120070.0,120060.0,0.317226]
[1755031006627,0.1831253,120070.0,120060.0,0.82696627]
[1755031007217,0.1831253,120070.0,120060.0,0.317226]
[1755031007422,0.1831253,120070.0,120060.0,0.82696627]
[1755031007965,0.1831253,120070.0,120060.0,0.68472627]
[1755031008169,0.1831253,120070.0,120060.0,0.82692627]
[1755031008806,0.1831253,120070.0,120060.0,0.174986]
[1755031009060,0.1831253,120070.0,120060.0,0.317186]
[1755031009217,0.1831253,120070.0,120060.0,0.82692627]
[1755031009610,0.1831253,120070.0,120060.0,0.82688627]
[1755031010036,0.1831253,120070.0,120060.0,0.68472627]
[1755031010238,0.1831253,120070.0,120060.0,0.68969627]
[1755031010447,0.1831253,120070.0,120060.0,0.322116]
[1755031010649,0.1831253,120070.0,120060.0,0.83185627]
[1755031011638,0.1831253,120070.0,120060.0,0.322116]
[1755031011839,0.1831253,120070.0,120060.0,0.83185627]
[1755031012478,0.1831253,120070.0,120060.0,0.68969627]
[1755031012678,0.1831253,120070.0,120060.0,0.83181627]
[1755031013616,0.1831253,120070.0,120060.0,0.68969627]
[1755031013772,0.1831253,120070.0,120060.0,0.83181627]
[1755031013983,0.1831253,120070.0,120060.0,0.522076]
[1755031014186,0.1831253,120070.0,120060.0,1.03181627]
[1755031014390,0.1831253,120070.0,120060.0,0.83181627]
[1755031014897,0.1831253,120070.0,120060.0,0.322076]
[1755031015105,0.1831253,120070.0,120060.0,0.83177627]
[1755031016108,0.1831253,120070.0,120060.0,0.68969627]
[1755031016318,0.1831253,120070.0,120060.0,0.322036]
[1755031016522,0.1831253,120070.0,120060.0,0.68969627]
[1755031016742,0.1831253,120070.0,120060.0,0.83173627]
[1755031020506,0.1831253,120070.0,120060.0,0.83169627]
[1755031020918,0.1831253,120070.0,120060.0,0.179956]
[1755031021119,0.1831253,120070.0,120060.0,0.83165627]
[1755031023274,0.1831253,120070.0,120060.0,0.68969627]
[1755031023587,0.1831253,120070.0,120060.0,0.83161627]
[1755031025032,0.1831253,120070.0,120060.0,0.179956]
[1755031025240,0.1831253,120070.0,120060.0,0.83161627]
[1755031025878,0.1831253,120070.0,120060.0,0.321876]
[1755031026057,0.1831253,120070.0,120060.0,0.83161627]
[1755031026673,0.1831253,120070.0,120060.0,0.83157627]
[1755031028117,0.001,120070.0,120060.0,1.25627964]
[1755031028339,0.001,120070.0,120060.0,1.33900289]
[1755031028560,0.001,120070.0,120060.0,1.48084289]
[1755031029432,0.001,120070.0,120060.0,1.99058316]
[1755031029633,0.1675695,120070.0,120060.0,1.31425952]
[1755031030051,0.001,120070.0,120060.0,1.31425952]
[1755031030176,0.002,120070.0,120060.0,1.48084289]
[1755031030377,0.001,120070.0,120060.0,1.48084289]
[1755031030786,0.002,120070.0,120060.0,1.48084289]
[1755031031293,0.001,120070.0,120060.0,1.53880289]
[1755031031609,0.002,120070.0,120060.0,1.68056289]
[1755031035139,0.002,120070.0,120060.0,1.53880289]
[1755031035306,0.002,120070.0,120060.0,2.19026316]
[1755031035514,0.002,120070.0,120060.0,2.19022316]
[1755031036567,0.002,120070.0,120060.0,2.19018316]
[1755031036785,0.002,120070.0,120060.0,2.04854316]
[1755031037016,0.001,120070.0,120060.0,2.19018316]
[1755031037132,0.19386995,120100.0,120090.0,0.35]
[1755031037343,0.19401589,120100.0,120090.0,1.00346027]
[1755031037552,0.19401589,120100.0,120090.0,1.00659027]
[1755031037953,0.19401589,120100.0,120090.0,1.02516406]
[1755031038160,0.19401589,120100.0,120090.0,1.05015106]
[1755031038382,0.17656687,120100.0,120090.0,1.05015106]
[1755031039031,0.17656687,120100.0,120090.0,0.99127431]
[1755031039032,0.00260815,120100.0,120090.0,0.99127431]
[1755031039244,0.16913604,120100.0,120090.0,1.13287431]
[1755031039425,0.17113604,120100.0,120090.0,1.13287431]
[1755031039971,0.17113604,120100.0,120090.0,1.13283431]
[1755031040177,0.16813604,120100.0,120090.0,1.13283431]
[1755031040373,0.16913604,120100.0,120090.0,1.13283431]
[1755031040579,0.17113604,120100.0,120090.0,1.13283431]
[1755031040797,0.17013604,120100.0,120090.0,1.13283431]
[1755031041354,0.17113604,120100.0,120090.0,1.13283431]
[1755031042094,0.17113604,120100.0,120090.0,0.99127431]
[1755031042295,0.17113604,120100.0,120090.0,1.13279431]
[1755031042719,0.17113604,120100.0,120090.0,0.99127431]
[1755031042937,0.17113604,120100.0,120090.0,1.13279431]
[1755031043823,0.17113604,120100.0,120090.0,0.48153404]
[1755031044030,0.17113604,120100.0,120090.0,0.99127431]
[1755031044226,0.17113604,120100.0,120090.0,1.13275431]
[1755031046897,0.17113604,120100.0,120090.0,1.13271431]
[1755031048445,0.17113604,120100.0,120090.0,0.62297404]
[1755031048797,0.17113604,120100.0,120090.0,1.13271431]
[1755031050503,0.17113604,120100.0,120090.0,0.99127431]
[1755031050703,0.17113604,120100.0,120090.0,1.13267431]
[1755031052310,0.18858506,120100.0,120090.0,0.90647106]
[1755031052724,0.18858506,120100.0,120090.0,1.04779106]
[1755031053131,0.18858506,120100.0,120090.0,1.04990106]
[1755031054697,0.18858506,120100.0,120090.0,1.04982106]